Cogmind - Beta 15 @@@ ROGUE MODE // 2025.09.14 @ 22:02:05 Player: Runagate Result: Self-destructed Performance ------------- Evolutions (3) 1500 Regions Visited (6) 1200 Robots Destroyed (53) 265 Value Destroyed (1115) 1115 Prototype IDs (23) 460 Alien Tech Used (0) 0 Bonus (417) 417 TOTAL SCORE: 4957 Bonus ------- High Alert Combat Kills 110 Follower Combat Kills 7 Aligned with FarCom 300 Cogmind --------- Core Integrity 350/700 Matter 228/300 Energy 240/240 System Corruption 0% Temperature Cool (21) Movement Walking (270) Ox2 Location -7/Factory Parts ------- > --- POWER (2) -------- Nuclear Core > --- PROPULSION (3) --- Titanium Leg > --- UTILITY (6) ------ Small Storage Unit Large Storage Unit Advanced Targeting Computer Improved Medium Armor Plating > --- WEAPON (2) ------- (None) > --- INVENTORY (15) --- Medium Treads Aluminum Leg Aluminum Leg AWS/Thermal Assault Rifle Mining Laser Peak State ------------ > --- POWER ------------ Light Deuterium Engine Nuclear Core > --- PROPULSION ------- Carbon-fiber Leg Titanium Leg Titanium Leg > --- UTILITY ---------- Small Storage Unit Large Storage Unit Seismic Detector Advanced Targeting Computer Improved Medium Armor Plating > --- WEAPON ----------- YOLO Cannon > --- INVENTORY -------- Aluminum Leg Aluminum Leg AWS/Thermal Assault Rifle Mining Laser [Rating: 47] Favorites ----------- Power Ion Engine Engine Ion Engine Power Core Nuclear Core Propulsion Light Treads Treads Light Treads Leg Titanium Leg Utility Small Storage Unit Device Seismic Detector Storage Small Storage Unit Processor Advanced Targeting Computer Protection Hardened Light Armor Plating Weapon AWS/Thermal Energy Gun AWS/Thermal Energy Cannon YOLO Cannon Ballistic Gun Assault Rifle Build | -11 -10 -10 -10 -9 -8 -7 ------- Run | Yrd Mat Min Exi Min Mat Fac Slots Evolved 6 | . . . . . 4 2 Power 1 | . . . . . . 1 Propulsion 1 | . . . . . 1 . Utility 4 | . . . . . 3 1 Weapon . | . . . . . . . Parts Attached 23 | 7 . . 1 . 15 . Power 4 | 1 . . . . 3 . Engine 2 | 1 . . . . 1 . Core 2 | . . . . . 2 . Reactor . | . . . . . . . Propulsion 7 | 2 . . . . 5 . Treads 2 | 2 . . . . . . Leg 5 | . . . . . 5 . Wheel . | . . . . . . . Hover . | . . . . . . . Flight . | . . . . . . . Utility 8 | 2 . . . . 6 . Device 3 | 1 . . . . 2 . Storage 2 | 1 . . . . 1 . Processor 1 | . . . . . 1 . Hackware . | . . . . . . . Protection 2 | . . . . . 2 . Artifact . | . . . . . . . Weapon 4 | 2 . . 1 . 1 . Energy Gun 1 | . . . 1 . . . Energy Cannon 1 | . . . . . 1 . Ballistic Gun 2 | 2 . . . . . . Ballistic Cannon . | . . . . . . . Launcher . | . . . . . . . Special Weapon . | . . . . . . . Impact Weapon . | . . . . . . . Slashing Weapon . | . . . . . . . Piercing Weapon . | . . . . . . . Special Melee Weapon . | . . . . . . . Unidentified Prototypes . | . . . . . . . Parts Lost 10 | . . . . . 5 5 Power 2 | . . . . . 1 1 Propulsion 3 | . . . . . 1 2 Utility 4 | . . . . . 3 1 Weapon 1 | . . . . . . 1 Highest Loss Streak 5 | . . . . . 4 5 To Critical Strikes . | . . . . . . . Average Backups 5 | 3 5 5 5 6 6 5 Power . | . 1 1 1 1 . . Propulsion 1 | 1 2 2 2 2 1 2 Utility . | . 1 1 1 1 . . Weapon 2 | . 1 1 1 2 3 3 Tool/Special . | . . . . . . . Unused Backups 4 | . . . 2 . 1 1 Power 1 | . . . . . 1 . Propulsion . | . . . . . . . Utility . | . . . . . . . Weapon 3 | . . . 2 . . 1 Tool/Special . | . . . . . . . Average Slot Usage (%) 83 | . 100 100 93 85 76 81 Engine 10 | . 14 14 14 14 8 6 Treads 18 | . 28 28 28 28 13 . Leg 4 | . . . . . 5 21 Device 14 | . 14 14 14 14 15 6 Storage 15 | . 14 14 14 14 16 15 Protection 4 | . . . . . 7 7 Energy Gun 6 | . . . 6 14 6 . Energy Cannon 1 | . . . . . 2 6 Ballistic Gun 6 | . 28 28 15 . . . Peak Build Rating 47 | 7 7 7 23 23 44 47 Average Rating 22 | 6 7 7 14 23 29 46 On Entrance 15 | . 7 7 7 23 23 44 Naked Turns . | . . . . . . . Heaviest Build 63 | 14 14 14 19 19 58 63 Greatest Support 49 | 40 40 40 40 40 49 49 Greatest Overweight (x) 2 | 2 . . . . 2 1 Average Overweight (x) . | . . . . . . 1 Largest Inventory Capacity 15 | 8 8 8 8 8 15 15 Average Capacity 11 | 7 8 8 8 8 13 15 Most Carried 11 | 5 5 5 7 8 11 7 Average Carried 6 | 3 5 5 5 7 7 6 Final Capacity 15 | 8 8 8 8 8 15 15 Final Carried 8 | 5 5 5 7 8 7 7 Class Distribution -------------------- 100% | Mutant Dominant Class ---------------- Mutant | -10/Materials Mutant | -10/Mines Mutant | -10/Exiles Mutant | -9/Mines Mutant | -8/Materials Mutant | -7/Factory Resources | -11 -10 -10 -10 -9 -8 -7 ----------- Run | Yrd Mat Min Exi Min Mat Fac Matter Collected 449 | 366 . . . 10 73 . Remotely . | . . . . . . . Salvage Created 1398 | 225 . . . 176 997 . Parts 83 | 23 . . . 9 51 . Haulers Intercepted . | . . . . . . . Recyclers Shooed 1 | . . . . . 1 . Parts Field Recycled . | . . . . . . . Retrieved Matter . | . . . . . . . Parts Self-Destructed . | . . . . . . . Prevented . | . . . . . . . Kills | -11 -10 -10 -10 -9 -8 -7 ------- Run | Yrd Mat Min Exi Min Mat Fac Combat Hostiles Destroyed 32 | . . . . 6 26 . Melee 1 | . . . . . 1 . Guns 21 | . . . . 6 15 . Cannons 5 | . . . . . 5 . AOE 4 | . . . . . 4 . Classes Destroyed 10 | 3 . . . 2 5 . Worker 3 | 2 . . . . 1 . Builder 6 | . . . . . 6 . Tunneler 6 | 6 . . . . . . Recycler 2 | 1 . . . . 1 . Mechanic 1 | . . . . . 1 . Watcher 3 | . . . . . 3 . Swarmer 16 | . . . . 3 13 . Grunt 12 | . . . . 3 9 . Duelist 1 | . . . . . 1 . Sentry 3 | . . . . . 3 . Best Kill Streak 7 | 3 . . . 3 7 . Combat Bots Only 6 | . . . . 3 6 . Max Kills in Single Turn 4 | 1 . . . 1 4 . Gunslinging . | . . . . . . . Exploded 1 | . . . . . 1 . Melee 1 | . . . . . 1 . Uniques/NPCs Destroyed . | . . . . . . . Combat | -11 -10 -10 -10 -9 -8 -7 -------- Run | Yrd Mat Min Exi Min Mat Fac Hostile Shots Fired 125 | . . . . 10 113 2 Missed 36 | . . . . 2 33 1 Hits 89 | . . . . 8 80 1 Melee 3 | . . . . . 3 . Projectile 86 | . . . . 8 77 1 Critical Strikes 3 | . . . . . 3 . Damage Taken 1443 | . 8 . . 78 1261 96 Core 262 | . . . . 17 245 . Absorbed by Shields . | . . . . . . . Core Remaining (%) 82 | 100 . . . 93 55 . Volleys Fired 38 | 24 . . . . 13 1 Largest 2 | 2 . . . . 1 1 Hottest 100 | 40 . . . . 100 100 Shots Fired 160 | 48 . . . 18 94 . Gun 147 | 48 . . . 18 81 . Cannon 13 | . . . . . 13 . Launcher . | . . . . . . . Special . | . . . . . . . Kinetic 48 | 48 . . . . . . Thermal 112 | . . . . 18 94 . Explosive . | . . . . . . . Electromagnetic . | . . . . . . . Robot Hit Streak 24 | 8 . . . 13 24 . Robot Miss Streak 4 | 3 . . . 1 4 . Penetration Max . | . . . . . . . Secondary Targets . | . . . . . . . Autonomous 100 | . . . . 18 82 . Shots Hit Robots 119 | 33 . . . 16 70 . Core Hits 55 | 12 . . . 6 37 . Critical Kills 1 | . . . . . 1 . Critical Parts Destroyed 1 | 1 . . . . . . Critical Strikes 2 | 1 . . . . 1 . Meltdown 1 | . . . . . 1 . Destroy 1 | 1 . . . . . . Melee Attacks . | . . . . . . . Impact . | . . . . . . . Slashing . | . . . . . . . Piercing . | . . . . . . . Sneak Attacks . | . . . . . . . Combat Hostiles . | . . . . . . . Follow-up Attacks . | . . . . . . . Damage Inflicted 4452 | 364 . . . 413 3675 . Guns 2605 | 364 . . . 406 1835 . Cannons 851 | . . . . . 851 . Explosions 985 | . . . . . 985 . Melee . | . . . . . . . Ramming 11 | . . . . 7 4 . Kinetic 364 | 364 . . . . . . Thermal 4077 | . . . . 406 3671 . Explosive . | . . . . . . . Electromagnetic . | . . . . . . . Impact . | . . . . . . . Slashing . | . . . . . . . Piercing . | . . . . . . . Highest Corruption . | . . . . . . . Average Corruption . | . . . . . . . Corruption Purged . | . . . . . . . Corruption Blocked . | . . . . . . . Overload Shots . | . . . . . . . Overflow Damage 150 | . . . . . 150 . Projectiles 63 | . . . . . 63 . Explosions 87 | . . . . . 87 . Melee . | . . . . . . . Knockbacks . | . . . . . . . Impact . | . . . . . . . Kinetic . | . . . . . . . Secondary . | . . . . . . . Self-Inflicted Damage 153 | . . . . . 73 80 Shots 2 | . . . . . 1 1 Rammed 2 | . . . . 1 1 . Targets Rammed 2 | . . . . 1 1 . Kicked . | . . . . . . . Crushed . | . . . . . . . Highest Temperature 33 | . . . . . 33 21 Average Temperature 13 | . . . . . 13 14 Received Heat Transfer 453 | . . . . 21 423 9 Siege Activations . | . . . . . . . Martial Activations . | . . . . . . . Shielding Activations . | . . . . . . . Robots Disrupted . | . . . . . . . Combat Hostiles . | . . . . . . . Robots Corrupted . | . . . . . . . Combat Hostiles . | . . . . . . . Parts Fried . | . . . . . . . Impact Corruptions . | . . . . . . . Robots Melted 1 | . . . . . 1 . Combat Hostiles 1 | . . . . . 1 . Parts Melted 12 | . . . . 1 11 . Heat Transferred 4579 | . . . . 518 4061 . Parts Sabotaged . | . . . . . . . Parts Stolen . | . . . . . . . Parts Stripped . | . . . . . . . Power Chain Reactions . | . . . . . . . Alert | -11 -10 -10 -10 -9 -8 -7 ------- Run | Yrd Mat Min Exi Min Mat Fac Maximum Alert Level 2 | . . . . . 2 1 Low Security (%) 70 | 100 100 100 . 100 58 . Level 1 15 | . . . . . 16 100 Level 2 14 | . . . . . 24 . Level 3 . | . . . . . . . Level 4 . | . . . . . . . Level 5 . | . . . . . . . High Security . | . . . . . . . Max Security . | . . . . . . . Peak Influence 681 | 10 . . . 102 681 302 Initial 302 | . . . . . 35 302 Average 143 | 1 . . . 47 212 272 Influence Increases 1140 | 45 . . . 172 914 9 Destroy 0b10 Robot/C 660 | . . . . 140 520 . Destroy 0b10 Robot/NC 105 | 45 . . . . 60 . Destroy Leader 116 | . . . . 20 96 . Allied During Kill 9 | . . . . 9 . . Disable Machine 90 | . . . . . 90 . Destroy Structure 145 | . . . . 3 133 9 Lose Combat Pursuer 15 | . . . . . 15 . Influence Decreases 939 | 45 . . . 80 341 473 Entered New Map 420 | . . . . . 57 363 Time Decay 419 | 45 . . . 80 234 60 Lost Part 100 | . . . . . 50 50 Squads Dispatched 2 | . 1 . . . 1 . Investigation . | . . . . . . . Extermination . | . . . . . . . Reinforcement 2 | . 1 . . . 1 . Assault . | . . . . . . . Garrison . | . . . . . . . Intercept . | . . . . . . . Searches Triggered . | . . . . . . . Construction Impeded . | . . . . . . . Haulers Reinforced . | . . . . . . . Active Scanning Responses . | . . . . . . . Cargo Convoy Interrupts . | . . . . . . . Stealth | -11 -10 -10 -10 -9 -8 -7 --------- Run | Yrd Mat Min Exi Min Mat Fac Distress Signals 7 | . 2 . . 1 4 . Communications Jammed . | . . . . . . . Distress Signals . | . . . . . . . Times Spotted 45 | . 1 . . 7 36 1 Peak Tracking Total 6 | . 1 . . 4 6 1 Tactical Retreats 1 | . . . . . 1 . Traps | -11 -10 -10 -10 -9 -8 -7 ------- Run | Yrd Mat Min Exi Min Mat Fac Traps Triggered 1 | . . . . . 1 . Indirectly . | . . . . . . . Trap Hack Attempts . | . . . . . . . Triggered . | . . . . . . . Disarmed . | . . . . . . . Reprogrammed . | . . . . . . . Reused . | . . . . . . . Traps Extracted . | . . . . . . . Installed . | . . . . . . . Triggered . | . . . . . . . Machines | -11 -10 -10 -10 -9 -8 -7 ---------- Run | Yrd Mat Min Exi Min Mat Fac Machines Disabled 6 | . . . . . 6 . Max in Single Turn 2 | . . . . . 2 . Machines Repaired . | . . . . . . . Machines Dismantled . | . . . . . . . Machines Sabotaged . | . . . . . . . Overloaded Fab Kills . | . . . . . . . Hacking | -11 -10 -10 -10 -9 -8 -7 --------- Run | Yrd Mat Min Exi Min Mat Fac Machines Accessed 3 | . . . 1 . 2 . Terminals 1 | . . . . . 1 . Fabricators . | . . . . . . . Repair Stations . | . . . . . . . Recycling Units . | . . . . . . . Scanalyzers 1 | . . . . . 1 . Garrison Access . | . . . . . . . Total Hacks 6 | . . . 1 . 5 . Successful 2 | . . . 1 . 1 . Failed 4 | . . . . . 4 . Catastrophic 1 | . . . . . 1 . Database Lockouts . | . . . . . . . Manual 4 | . . . 2 . 2 . Terminals 2 | . . . . . 2 . Fabricators . | . . . . . . . Repair Stations . | . . . . . . . Recycling Units . | . . . . . . . Scanalyzers 3 | . . . . . 3 . Garrison Access . | . . . . . . . Terminal Hacks 1 | . . . 1 . . . Proto ID Catalog 1 | . . . 1 . . . Fabricator Hacks . | . . . . . . . Repair Station Hacks . | . . . . . . . Recycling Unit Hacks . | . . . . . . . Scanalyzer 1 | . . . . . 1 . Insert Component 1 | . . . . . 1 . Garrison Access Hacks . | . . . . . . . Unauthorized Hacks . | . . . . . . . Terminals . | . . . . . . . Fabricators . | . . . . . . . Repair Stations . | . . . . . . . Recycling Units . | . . . . . . . Scanalyzers . | . . . . . . . Garrison Access . | . . . . . . . Data Cores Recovered . | . . . . . . . Used . | . . . . . . . Hacking Detections 2 | . . . . . 2 . Full Trace Events . | . . . . . . . Feedback Events . | . . . . . . . Feedback Blocked . | . . . . . . . Robot Schematics Acquired . | . . . . . . . Robots Built . | . . . . . . . Authchips . | . . . . . . . Time . | . . . . . . . Total Robot Build Rating . | . . . . . . . Part Schematics Acquired . | . . . . . . . Parts Built . | . . . . . . . Authchips . | . . . . . . . Time . | . . . . . . . Total Part Build Rating . | . . . . . . . Parts Repaired . | . . . . . . . Time . | . . . . . . . Parts Recycled . | . . . . . . . Recycled Matter . | . . . . . . . Retrieved Matter . | . . . . . . . Retrieved Components . | . . . . . . . Parts Scanalyzed . | . . . . . . . Part Schematics Acquired . | . . . . . . . Parts Damaged . | . . . . . . . Bothacking | -11 -10 -10 -10 -9 -8 -7 ------------ Run | Yrd Mat Min Exi Min Mat Fac Used RIF Installer . | . . . . . . . Robots Hacked . | . . . . . . . Non-combat . | . . . . . . . Combat . | . . . . . . . Robot Hacks Applied . | . . . . . . . Relay Couplers Released . | . . . . . . . Fabnet Peak Effective % . | . . . . . . . Robots Rewired . | . . . . . . . Allies Hacked . | . . . . . . . Hacks Repelled . | . . . . . . . Allies | -11 -10 -10 -10 -9 -8 -7 -------- Run | Yrd Mat Min Exi Min Mat Fac Total Allies 1 | . . . . 1 . . Largest Group 1 | . . . . 1 1 . Highest-Rated Group 31 | . . . . 31 31 . Highest-Rated Ally 31 | . . . . 31 31 . Total Orders . | . . . . . . . Ally Attacks 9 | . . . . 9 . . Total Damage 126 | . . . . 126 . . Kills 1 | . . . . 1 . . Allies Corrupted . | . . . . . . . Allies Melted . | . . . . . . . Intel | -11 -10 -10 -10 -9 -8 -7 ------- Run | Yrd Mat Min Exi Min Mat Fac Active Infowar (turns) 2445 | 196 159 116 382 213 1250 129 Seismic 2445 | 196 159 116 382 213 1250 129 Robot Analysis Total . | . . . . . . . Derelict Logs Recovered . | . . . . . . . Drone Launches . | . . . . . . . Drone Recoveries . | . . . . . . . Exploration | -11 -10 -10 -10 -9 -8 -7 ------------- Run | Yrd Mat Min Exi Min Mat Fac Turns Passed 2569 | 305 159 116 382 213 1264 130 Spaces Moved 1234 | 134 99 73 236 117 512 63 Core 11 | 11 . . . . . . Treads 1052 | 123 99 73 236 117 404 . Legs 171 | . . . . . 108 63 Wheels . | . . . . . . . Hover . | . . . . . . . Flight . | . . . . . . . Fastest Speed 50 | 50 160 160 160 160 160 196 Average Speed 184 | 153 160 160 160 160 217 196 Slowest Speed 320 | 160 160 160 160 160 320 196 Overloaded Moves . | . . . . . . . Propulsion Burnouts . | . . . . . . . Robots Hopped . | . . . . . . . Potential Cave-ins . | . . . . . . . Cave-ins Triggered . | . . . . . . . Exploration Rate (%) 25 | 7 23 34 44 24 45 3 Regions Visited 6 Branch Regions 3 Pre-discovered Areas . | . . . . . . . Known Exits Taken . | . . . . . . . Unknown Exits Taken 6 | 1 1 1 1 1 1 . Scrap Searched 1 | . . 1 . . . . Spaces Dug . | . . . . . . . Terrain Destroyed 169 | . . . . 3 157 9 Melee . | . . . . . . . Projectile 20 | . . . . 3 17 . AOE 149 | . . . . . 140 9 Terrain Rammed . | . . . . . . . Walls Destroyed . | . . . . . . . Machines Disabled . | . . . . . . . Actions | -11 -10 -10 -10 -9 -8 -7 --------- Run | Yrd Mat Min Exi Min Mat Fac Total 1430 | 186 100 72 243 142 621 66 Wait 120 | 17 2 . . 24 77 . Move 1228 | 133 98 72 235 116 511 63 Hop . | . . . . . . . Pick Up 10 | 5 . . 2 1 1 1 Fast Attach 14 | 7 . . 1 . 6 . Attach 7 | . . . . . 6 1 Detach 3 | . . . 2 . 1 . Swap 4 | . . . . . 4 . Drop 4 | . . . 3 . 1 . Fire 38 | 24 . . . . 13 1 Melee . | . . . . . . . Ram . | . . . . . . . Kick . | . . . . . . . Crush 2 | . . . . 1 1 . Escape Stasis . | . . . . . . . Rewire . | . . . . . . . Trap . | . . . . . . . Miscellaneous . | . . . . . . . Route ------- -11/Scrapyard -10/Materials -10/Mines -10/Exiles -9/Mines -8/Materials -7/Factory History --------- Turn | Location | Event 14 | -11/Scrapyard | Discovered new exit (range 16) 306 | -11/Scrapyard | Entered Materials 307 | -10/Materials | Build established: Mutant 340 | -10/Materials | Discovered new exit (range 15) 436 | -10/Materials | Met 8R-AWN 465 | -10/Materials | Entered Mines 467 | -10/Mines | Followed 8R-AWN into the Mines 574 | -10/Mines | Discovered new exit (range 5) 581 | -10/Mines | Entered Exiles 620 | -10/Exiles | Welcomed by 8R-AWN 647 | -10/Exiles | Met EX-HEX 706 | -10/Exiles | Met EX-BIN 724 | -10/Exiles | Aligned with FarCom system 725 | -10/Exiles | Given EX-Vault access code 764 | -10/Exiles | Opened EX-Vault 789 | -10/Exiles | Found AWS/Thermal 801 | -10/Exiles | Found Firepult 804 | -10/Exiles | Found YOLO Cannon 837 | -10/Exiles | Warned to stay clear of 0b10 Research branches 906 | -10/Exiles | Learned about 8R-AWN's background 946 | -10/Exiles | Discovered new exit (range 14) 963 | -10/Exiles | Stole two prototypes: AWS/Thermal, YOLO Cannon 963 | -10/Exiles | Entered Mines 966 | -9/Mines | Received a Mining Laser from a helpful Derelict 1172 | -9/Mines | Discovered new exit (range 2) 1176 | -9/Mines | Entered Materials 1176 | -8/Materials | Accompanied by 1 ally 1176 | -8/Materials | Evolved 4 slots: Propulsion x1, Utility x3 2108 | -8/Materials | AWS/Thermal suddenly broke down 2170 | -8/Materials | Lost 4 parts (1p1n2u) 2425 | -8/Materials | Discovered new exit (range 9) 2440 | -8/Materials | Entered Factory 2440 | -7/Factory | Evolved 2 slots: Power x1, Utility x1 2442 | -7/Factory | FarCom data flow suspended 2566 | -7/Factory | YOLO Cannon suddenly exploded 2570 | -7/Factory | Self-destructed Last Messages --------------- 02436_ U-05 Engineer builds a Door. PARAMETERS=POWER+1,UTILITY+1 LOCATION=UNKNOWN GOAL=ESCAPE 02440_ Receiving FarCom transmissions... 02442_ FARCOM_MSG: Not cool, anonymous tester bot. We've taken inventory and discovered your thievery. Let's see how you like having parts stolen! 02442_ FarCom data flow suspended. 02532_ Acquired Med. Treads. 02536_ K-01 Serf cleans the Assembly Bed. 02566_ YOLO Cannon suddenly explodes. 02566_ Lgt. Deuterium Engine destroyed. 02566_ Titanium Leg destroyed. 02566_ Carbon-fiber Leg destroyed. 02566_ Core damaged (-350). 02567_ ALERT: All DSF locations entering lockdown mode. 02569_ Seismic Detector destroyed. Map ----- +----------------------------------------------------+ | ?????### # #??????????????????????? | | ???????# ###+############ #??????????????????? | | ???????# ?????????????????? | | ???????# ?????????????????? | | ???????# ?????????????????? | | ???????# ?????????????????? | | ???????# ?????????????????? | | ???????# ###+############ ??????????????????? | | ???????# # #?????????????????????? | | ???????# # """""" ] #?????????????????????? | | ???????# # """""" #?????????????????????? | | ???????+ # """""" #???? #??????????????? | | ???????# # """""" #??? #??????????????? | | ???????# # #?? #??????????????? | | ???????# # """""" #?? #??????????????? | | ???????# # ?""""" #? #####??????????? | | ???????# #??""""" #? ??????????? | | ???????# ??"""""" ## ??????????? | | ???????? + +k "??????????? | | ?????????? ###########+### "??????????? | | ???????????????????????# ""?????????? | | ??????????????????????## ""?????????? | | ??????????????????????#; ""?????????? | | ?????????????? G??????#; r ""?????????? | | ?????????????? "" #; ""?????????? | | ?????????????# " ; @ ????????? | | ?????????????# ; ;;######## ????????? | | ?????????????# ; ; #????????????????????? | | ?????????????# # ###????????????????????? | | ?????????????########?# #??????????????????????? | | ?????????????????????? ??????????????????????? | | ????????????????????? ??????????????????????? | | ?????????????????????g ??????????????????????? | | ???????????????????? ??????????????????????? | | ??????????????????? a ??????????????????????? | | ??????????????????? ??????????????????????? | | ?????????????????? ??????????????????????? | | ?????????????????? ??????????????????????? | | ??????????????????""""""" ??????????????????????? | | ???????????????????????"" ??????????????????????? | | ????????????????????????? ??????????????????????? | | ?????????????????????????????????????????????????? | | ?????????????????????????????????????????????????? | | ?????????????????????????????????????????????????? | | ?????????????????????????????????????????????????? | | ?????????????????????????????????????????????????? | | ?????????????????????????????????????????????????? | | ?????????????????????????????????????????????????? | | ?????????????????????????????????????????????????? | | ?????????????????????????????????????????????????? | +----------------------------------------------------+ Best States ------------- Heat Dissipation 53 Energy Generation 23 Energy Capacity 280 Matter Stores 300 Matter Capacity 300 Sight Range 16 Terrain Scan Density 10 Armor Coverage 225 Evasion (%) 40 Targeting Accuracy 8 Recoil Reduction 2 Item Schematics ----------------- None Robot Schematics ------------------ None Fabricated ------------ Nothing Repaired ---------- Nothing Alien Tech Used ----------------- None Achievements -------------- None Challenges ------------ None Game ------ Seed SiegeRingInsulator Manual? 0 Play Time 00:11:10 Cumulative 64.0 hours Start 2025.09.14 @ 21:51:18 End 2025.09.14 @ 22:02:05 Sessions 1 Manual Loads 0 Difficulty Rogue Special Mode None Game No. 129 Rogue 127 Adventurer 0 Explorer 2 Win Type - Total 0 Types 0/0/0/0/0/0/0/0/0/0 Lore% 27 Gallery% 42 Achievement% 39 Wizard Run 0 Options --------- Layout 2 ASCII 0 Keyboard 1 Movement Arrows Keybinds 0 Fullscreen 1 Font 28/SmallcapsGlow Map View 50x49 Zoom Use 6% Tactical HUD 1 Map Filters NONE Filters NONE Steam 1 RUN: 785f9c8c-d93f-418f-979e-7d55d9e9b94a